bitfinex-derivatives/quotes_BNBF0:USTF0_20250303
["timestamp","ask_amount","ask_price","bid_price","bid_amount"]
[1741018433683,0.03748968,590.45,590.44,0.27225854]
[1741018434588,0.02891017,590.45,590.44,0.27225854]
[1741018435391,0.00862169,590.45,590.44,0.27225854]
[1741018436292,0.00862169,590.45,590.31,0.27225854]
[1741018436489,0.00862169,590.45,590.32,0.27225854]
[1741018436686,0.00862169,590.45,590.31,0.27225854]
[1741018436884,0.00862169,590.45,590.32,0.27225854]
[1741018437089,0.00862169,590.45,590.33,0.27225854]
[1741018437285,0.00862169,590.45,590.34,0.27225854]
[1741018437485,0.00862169,590.45,590.35,0.27225854]
[1741018437685,0.00862169,590.45,590.36,0.27225854]
[1741018437888,0.00862169,590.45,590.37,0.27225854]
[1741018438088,0.00233834,590.45,590.37,0.27225854]
[1741018438284,1.349,590.81,590.38,0.27225854]
[1741018438492,1.094,590.65,590.39,0.27225854]
[1741018438790,1.094,590.65,590.4,0.27225854]
[1741018438990,1.094,590.65,590.34,0.27225854]
[1741018439185,1.094,590.65,590.35,0.27225854]
[1741018439386,1.094,590.65,590.36,0.27225854]
[1741018439586,1.094,590.65,590.34,0.27225854]
[1741018439786,1.094,590.65,590.35,0.27225854]
[1741018439990,1.094,590.65,590.36,0.27225854]
[1741018440192,1.094,590.65,590.63,1.26512561]
[1741018442790,1.094,590.65,590.44,1.26512561]
[1741018445095,1.094,590.65,590.22,1.26512561]
[1741018446296,1.094,590.65,590.23,0.27236535]
[1741018447400,1.094,590.65,590.24,0.27236535]
[1741018447598,1.094,590.65,590.06,0.27236535]
[1741018447899,1.094,590.65,590.07,0.27236535]
[1741018448099,1.094,590.65,590.06,0.27236535]
[1741018448299,1.094,590.65,590.07,0.27236535]
[1741018448601,1.094,590.65,590.08,0.27236535]
[1741018448799,1.094,590.65,590.06,0.27236535]
[1741018448999,1.094,590.65,590.07,0.27236535]
[1741018449200,1.094,590.65,590.08,0.27236535]
[1741018449401,1.094,590.65,590.09,0.27236535]
[1741018449593,1.094,590.65,590.1,0.27236535]
[1741018449799,1.094,590.65,590.24,1.26512561]
[1741018449994,1.094,590.65,590.25,0.27236535]
[1741018451804,1.094,590.65,589.83,2.55892174]
[1741018451805,1.094,590.65,590.17,1.26512561]
[1741018452008,1.094,590.65,590.18,0.27240521]
[1741018452401,1.094,590.65,590.17,1.26512561]
[1741018452601,1.04,590.64,590.17,1.26512561]
[1741018454802,1.04,590.64,589.88,1.26512561]
[1741018455211,1.04,590.64,589.89,0.27246707]
[1741018455605,1.108,590.63,589.89,0.27246707]
[1741018456409,1.108,590.63,589.9,0.27246707]
[1741018456610,1.108,590.63,589.89,0.27246707]
[1741018456908,1.108,590.63,589.9,0.27246707]
[1741018457110,1.108,590.63,589.91,0.27246707]
[1741018457305,1.108,590.63,589.92,0.27246707]
[1741018457507,1.108,590.63,589.93,0.27246707]
[1741018457705,1.108,590.63,589.94,0.27246707]
[1741018457910,1.108,590.63,589.95,0.27246707]
[1741018458107,1.108,590.63,589.82,0.27246707]
[1741018458311,1.108,590.63,589.83,0.61154782]
[1741018458512,1.108,590.63,589.84,0.27246707]
[1741018459214,1.108,590.63,589.85,0.33906925]
[1741018459416,1.108,590.63,589.86,0.27246707]
[1741018459614,1.108,590.63,589.87,0.33905775]
[1741018459815,1.108,590.63,590.01,1.26512561]
[1741018460114,1.108,590.63,590.02,0.27228185]
[1741018460512,1.108,590.63,590.03,0.27228185]
[1741018460814,1.108,590.63,590.04,0.27228185]
[1741018461013,1.108,590.63,590.02,0.27228185]
[1741018461217,1.108,590.63,590.03,0.27228185]
[1741018461415,1.108,590.63,590.02,0.27228185]
[1741018462116,1.108,590.63,590.03,0.33896581]
[1741018462317,1.108,590.63,590.25,1.26512561]
[1741018462511,1.108,590.63,590.26,0.27228185]
[1741018462714,1.344,590.62,590.26,0.27228185]
[1741018465716,1.344,590.62,590.27,0.27228185]
[1741018465914,1.344,590.62,590.28,0.27228185]
[1741018466115,1.344,590.62,590.2,0.27228185]
[1741018466418,1.344,590.62,590.21,0.27228185]
[1741018466618,1.344,590.62,590.19,1.26512561]
[1741018466619,1.344,590.62,590.22,0.27228185]
[1741018466819,1.378,590.61,590.2,0.27228185]
[1741018467021,1.378,590.61,590.21,0.33886243]
[1741018467219,1.378,590.61,590.22,0.27228185]
[1741018469514,1.378,590.61,590.23,0.27220315]
[1741018469717,1.378,590.61,590.24,0.27220315]
[1741018469915,1.378,590.61,590.22,0.27220315]
[1741018470116,1.378,590.61,590.23,0.27220315]
[1741018470314,1.378,590.61,590.22,0.27220315]
[1741018470515,1.378,590.61,590.23,0.27220315]
[1741018470719,1.378,590.61,590.24,0.27220315]
[1741018470920,1.378,590.61,590.21,1.60398804]
[1741018470921,1.378,590.61,590.25,0.27220315]
[1741018471123,1.378,590.61,590.26,0.27222906]
[1741018471418,1.378,590.61,590.27,0.27222906]
[1741018471624,1.378,590.61,590.28,0.27222906]
[1741018471920,1.378,590.61,590.29,0.27222906]
[1741018472116,1.378,590.61,590.22,0.27222906]
[1741018472320,1.378,590.61,590.23,0.27222906]
[1741018472628,1.378,590.61,590.24,0.27222906]
[1741018472826,1.378,590.61,590.22,0.27222906]
[1741018477521,1.378,590.61,590.23,0.27224024]
[1741018477725,1.378,590.61,590.24,0.27224024]
[1741018477925,1.378,590.61,590.22,0.27224024]
[1741018478121,1.378,590.61,590.23,0.27224024]
[1741018478427,1.378,590.61,590.24,0.27224024]
[1741018478629,1.378,590.61,590.25,0.27224024]
[1741018478928,0.954,590.6,590.26,0.27224024]
[1741018479128,0.954,590.6,590.22,0.27224024]
[1741018479427,0.954,590.6,590.23,0.27220243]
[1741018479622,0.954,590.6,590.24,0.27220243]
[1741018479823,0.954,590.6,590.22,0.27220243]
[1741018480128,0.954,590.6,590.23,0.27220243]
[1741018480329,0.954,590.6,590.24,0.27220243]
[1741018480629,0.954,590.6,590.21,0.33886243]
[1741018480821,0.954,590.6,590.22,0.27221298]
[1741018481927,1.239,590.59,590.22,0.27221298]
[1741018483727,1.239,590.59,590.21,0.33886243]
[1741018483926,1.239,590.59,590.22,0.2722073]
[1741018487030,1.239,590.59,590.23,0.27225304]
[1741018487230,1.239,590.59,590.24,0.27225304]
[1741018487434,1.239,590.59,590.25,0.27225304]
[1741018487635,1.239,590.59,590.22,0.27225304]
[1741018487939,1.239,590.59,590.23,0.27225304]
[1741018488236,1.239,590.59,590.24,0.27225304]
[1741018488635,1.239,590.59,590.25,0.27225304]
[1741018488830,1.239,590.59,590.26,0.27225304]
[1741018489036,1.239,590.59,590.27,0.27225304]
[1741018489232,1.239,590.59,590.22,0.27225304]
[1741018489435,1.239,590.59,590.23,0.27225304]
[1741018489633,1.239,590.59,590.24,0.27225304]
[1741018489841,1.239,590.59,590.25,0.27225304]
[1741018490040,1.239,590.59,590.21,0.33886243]
[1741018490234,1.239,590.59,590.22,0.27227515]
[1741018491040,1.239,590.59,590.21,1.60398804]
[1741018491341,1.239,590.59,590.22,0.27227499]
[1741018491636,1.239,590.59,590.21,1.60398804]
[1741018491842,1.239,590.59,590.22,0.27227904]
[1741018493136,1.239,590.59,590.36,1.26512561]
[1741018493337,1.239,590.59,590.37,0.27227904]
[1741018493644,1.239,590.59,590.38,0.27228689]
[1741018493844,1.239,590.59,590.37,0.27228957]
[1741018494041,1.239,590.59,590.36,1.26512561]
[1741018494343,1.239,590.59,590.37,0.27227917]
[1741018494738,1.239,590.59,590.36,1.26512561]
[1741018494937,1.239,590.59,590.37,0.27227488]
[1741018495738,1.239,590.59,590.34,1.26512561]
[1741018496242,1.239,590.59,590.35,0.27229878]
[1741018496442,1.239,590.59,590.34,1.26512561]
[1741018496443,1.239,590.59,590.36,0.27229874]
[1741018496638,1.239,590.59,590.35,0.27229874]
[1741018496843,1.239,590.59,590.36,0.27229874]
[1741018497044,2.177,590.62,590.37,0.27229874]
[1741018497243,2.177,590.62,590.34,1.26512561]
[1741018498346,2.177,590.62,590.32,1.26512561]
[1741018498743,0.833,590.62,590.32,1.26512561]
[1741018499244,0.946,590.61,590.32,1.26512561]
[1741018499944,1.126,590.6,590.32,1.26512561]
[1741018500336,2.114,590.6,590.32,1.26512561]
[1741018500541,2.114,590.6,590.33,0.27230366]
[1741018500745,2.114,590.6,590.32,1.26512561]
[1741018501440,2.114,590.6,590.16,1.26512561]
[1741018501740,2.114,590.6,590.17,0.27235348]
[1741018504043,2.114,590.6,590.15,1.26512561]
[1741018504044,2.114,590.6,590.16,0.27235348]
[1741018504247,2.114,590.6,590.15,1.26512561]
[1741018505445,2.114,590.6,590.16,0.27241841]
[1741018506546,2.114,590.6,590.17,0.27241841]
[1741018506749,2.114,590.6,590.18,0.27241841]
[1741018507145,2.114,590.6,589.93,1.26512561]
[1741018507146,2.114,590.6,589.94,0.27241841]
[1741018507347,2.114,590.6,589.95,0.27241841]
[1741018507546,2.114,590.6,589.96,0.27241841]
[1741018507751,2.114,590.6,589.97,0.27241841]
[1741018507952,2.114,590.6,590.1,1.26512561]
[1741018508148,2.114,590.6,590.11,0.27241841]
[1741018508548,2.114,590.6,590.1,1.26512561]
[1741018508746,2.114,590.6,590.11,0.27239226]
[1741018509956,2.114,590.6,590.04,0.27239226]
[1741018510149,2.114,590.6,590.12,0.27239226]
[1741018510355,2.114,590.6,590.13,0.27239226]
[1741018510557,2.114,590.6,590.04,0.27239226]
[1741018510753,2.114,590.6,590.05,0.27239226]
[1741018510953,2.114,590.6,590.06,0.27239226]
[1741018511159,2.114,590.6,590.04,0.27239226]
[1741018511360,2.114,590.6,590.05,0.27239226]
[1741018511563,2.114,590.6,590.04,0.27239226]
[1741018511866,2.114,590.6,590.05,0.27239226]
[1741018512060,2.114,590.6,590.06,0.27239226]
[1741018512258,2.114,590.6,590.04,0.27239226]
[1741018512464,2.114,590.6,590.05,0.27239226]
[1741018512662,2.114,590.6,589.77,2.55892174]
[1741018512663,2.114,590.6,590.04,0.27239226]
[1741018512965,2.114,590.6,590.05,0.27239226]
[1741018513260,0.912,590.59,590.06,0.27239226]
[1741018513466,0.912,590.59,589.95,0.27239226]
[1741018513667,0.912,590.59,589.96,0.27239226]
[1741018513867,0.912,590.59,589.97,0.27239226]
[1741018514062,0.912,590.59,589.98,0.27239226]
[1741018514266,0.912,590.59,589.99,0.27239226]
[1741018514466,0.912,590.59,590.0,0.27239226]
[1741018514665,0.912,590.59,590.01,0.27239226]
[1741018514867,0.912,590.59,590.02,0.27239226]
[1741018515065,0.912,590.59,590.03,0.27239226]
[1741018515266,0.912,590.59,590.04,0.27239226]
[1741018515565,0.912,590.59,589.95,0.27239226]
[1741018515767,0.912,590.59,589.94,1.26512561]
[1741018515768,0.912,590.59,589.96,0.61139829]
[1741018515962,0.912,590.59,589.97,0.27239226]
[1741018516267,0.912,590.59,590.32,1.26512561]
[1741018516463,0.912,590.59,590.33,0.27239226]
[1741018517161,0.912,590.59,590.32,1.26512561]
[1741018519263,0.912,590.59,590.15,1.26512561]
[1741018519466,0.912,590.59,590.16,0.27240375]
[1741018522767,0.912,590.59,590.09,1.26512561]
[1741018522768,0.829,590.58,590.17,0.27240375]
[1741018522971,0.829,590.58,590.18,0.27237532]
[1741018523169,0.829,590.58,590.09,1.26512561]
[1741018525473,0.829,590.58,589.79,1.26512561]
[1741018525672,0.829,590.58,589.8,0.27251674]
[1741018527470,2.227,590.58,589.8,0.27251674]
[1741018527672,2.227,590.58,589.79,1.26512561]
[1741018527875,2.227,590.58,589.8,0.27254767]
[1741018528468,2.227,590.58,589.81,0.27254767]
[1741018528669,2.227,590.58,589.73,0.27254767]
[1741018528975,2.227,590.58,589.74,0.27254767]
[1741018529170,2.227,590.58,589.73,0.33913824]
[1741018529371,2.227,590.58,589.74,0.2725659]
[1741018531472,2.227,590.58,589.73,0.33913824]
[1741018531677,2.227,590.58,589.74,0.27247876]
[1741018533778,2.227,590.58,589.73,0.33913824]
[1741018533983,2.227,590.58,589.74,0.27244524]
[1741018534680,3.462,590.58,589.74,0.27244524]
[1741018536679,3.462,590.58,589.73,0.33913824]
[1741018536984,3.462,590.58,589.74,0.27257797]
[1741018538482,0.33865587,590.57,589.75,0.27259982]
[1741018538679,0.33865587,590.57,589.34,0.27259982]
[1741018538881,0.33865587,590.57,589.35,0.27259982]
[1741018539083,0.33865587,590.57,589.33,1.26512561]
[1741018539084,0.33865587,590.57,589.36,0.27259982]
[1741018539280,0.33865587,590.57,589.34,0.27259982]
[1741018539487,0.33865587,590.57,589.35,0.27259982]
[1741018539786,0.33865587,590.57,589.36,0.27259982]
[1741018539988,0.33865587,590.57,589.34,0.27259982]
[1741018540179,0.33865587,590.57,589.35,0.27259982]
[1741018540484,0.33865587,590.57,589.36,0.27259982]
[1741018540686,0.33865587,590.57,589.37,0.27259982]
[1741018540986,0.33865587,590.57,589.38,0.27259982]
[1741018541182,0.33865587,590.57,589.34,0.27259982]
[1741018541381,0.33865587,590.57,589.35,0.27259982]
[1741018541585,0.33865587,590.57,589.33,1.26512561]
[1741018541785,2.08167963,590.56,589.34,0.27271323]
[1741018541980,0.31158807,590.55,589.34,0.27271323]
[1741018542181,0.33867881,590.53,589.34,0.27271323]
[1741018542489,0.31158807,590.52,589.34,0.27271323]
[1741018542683,0.33869028,590.51,589.34,0.27271323]
[1741018542990,0.31158807,590.5,589.34,0.27271323]
[1741018543387,0.33869028,590.51,589.34,0.27271323]
[1741018544287,0.33869028,590.51,589.35,0.27271323]
[1741018544483,0.33869028,590.51,589.36,0.27271323]
[1741018544891,0.3116111,590.5,589.37,0.27271323]
[1741018545085,0.3116111,590.5,589.38,0.27271323]
[1741018545390,0.3116111,590.49,589.39,0.27271323]
[1741018545687,1.77009156,590.56,589.05,1.25722407]
[1741018545891,0.3118578,590.55,589.05,1.25722407]
[1741018546088,1.63852598,590.46,588.98,1.25722407]
[1741018546288,0.3118578,590.45,588.98,1.25722407]
[1741018546486,1.6345853,590.3,588.98,1.25722407]
[1741018546792,0.3118578,590.29,588.98,1.25722407]
[1741018547383,0.3118578,590.34,588.98,1.25722407]
[1741018547589,0.3118578,590.33,588.98,1.25722407]
[1741018547786,0.3118578,590.34,588.98,1.25722407]
[1741018547991,0.3118578,590.33,588.98,1.25722407]
[1741018548187,0.3118578,590.32,588.98,1.25722407]
[1741018548387,1.6345853,590.22,588.98,1.25722407]
[1741018548587,0.3118578,590.21,588.99,0.2729893]
[1741018548791,0.3118578,590.21,588.98,1.25722407]
[1741018549093,0.3118578,590.2,588.98,1.25722407]
[1741018549393,0.31185539,590.19,588.98,1.25722407]
[1741018549591,0.31185575,590.18,588.98,1.25722407]
[1741018549792,1.69747047,590.3,588.98,1.25722407]
[1741018550096,1.69747047,590.3,587.98,1.25722407]
[1741018550295,1.69747047,590.3,587.99,0.27293393]
[1741018550496,1.69747047,590.3,588.0,0.27293393]
[1741018550698,1.69747047,590.3,588.01,0.27293393]
[1741018550896,1.77172119,590.29,588.02,0.27293235]
[1741018551092,1.77172119,590.29,588.03,0.27293235]
[1741018551297,1.77172119,590.29,588.04,0.27293235]
[1741018551494,3.04901684,590.29,588.05,0.27293235]
[1741018551694,1.69691951,590.28,588.06,0.27293235]
[1741018551889,3.04901684,590.29,588.07,0.27293235]
[1741018552093,1.27729565,590.28,588.08,0.27293235]
[1741018552292,1.27729565,590.28,588.09,0.27293235]
[1741018552495,1.27729565,590.28,588.1,0.27293235]
[1741018552691,1.27729565,590.28,588.11,0.27293235]
[1741018552895,0.31180577,590.27,588.12,0.27293235]
[1741018553097,0.31180577,590.27,588.13,0.27293235]
[1741018553291,0.31180577,590.27,587.86,0.27293235]
[1741018553500,0.31180577,590.27,587.87,0.27293235]
[1741018553700,0.83,590.26,587.88,0.27293235]
[1741018553903,0.31186966,590.25,587.89,0.27299024]
[1741018554203,2.00877112,590.25,587.9,0.27299024]
[1741018554398,0.31186966,590.24,587.91,0.27299024]
[1741018554605,0.31186966,590.24,587.92,0.27299024]
[1741018554801,2.00877112,590.24,587.93,0.27299024]
[1741018555005,0.31186966,590.23,587.94,0.27299024]
[1741018555200,0.31186966,590.23,587.95,0.27299024]
[1741018555405,0.31186966,590.23,587.96,0.27299024]
[1741018555703,0.31186966,590.23,587.84,1.25722407]
[1741018555704,0.31186966,590.23,587.97,0.27299024]
[1741018555905,0.31186966,590.23,587.98,0.27299024]
[1741018556103,0.31186966,590.23,587.99,0.27299024]
[1741018556303,0.31186966,590.23,588.0,0.27299024]
[1741018556500,2.00877112,590.24,588.01,0.27299024]
[1741018556706,0.31186966,590.23,588.02,0.27299024]
[1741018556902,1.6345853,590.23,588.03,0.27295147]
[1741018557110,0.31183105,590.22,588.04,0.27295147]
[1741018557308,0.31183105,590.22,588.05,0.27295147]
[1741018557508,0.31183105,590.22,587.9,1.25722407]
[1741018557509,0.31183105,590.22,588.06,0.27295147]
[1741018557712,0.31183105,590.22,588.07,0.27295147]
[1741018557909,0.31183105,590.22,588.08,0.27295147]
[1741018558110,0.31183105,590.22,588.09,0.27295147]
[1741018558311,0.31183105,590.22,588.1,0.27295147]
[1741018558505,0.31183105,590.22,588.11,0.27295147]
[1741018558710,0.31183105,590.22,588.12,0.27295147]
[1741018559011,1.77194672,590.23,588.13,0.27295147]
[1741018559306,1.77194672,590.23,588.14,0.27295147]
[1741018559511,3.31851939,590.25,588.14,0.27295147]
[1741018559709,3.31851939,590.25,588.15,0.27295147]
[1741018559910,1.852,590.26,588.16,0.27295147]
[1741018560109,1.852,590.26,588.07,1.25722407]
[1741018560110,1.852,590.26,588.17,0.27295147]
[1741018560304,1.852,590.26,588.18,0.27295147]
[1741018560506,1.852,590.26,588.19,0.27295147]
[1741018560708,1.852,590.26,588.2,0.27295147]
[1741018560906,1.852,590.26,588.07,1.25722407]
[1741018560907,1.852,590.26,588.08,0.27295147]
[1741018561210,1.852,590.26,588.09,0.27295147]
[1741018561411,1.852,590.26,588.1,0.27295147]
[1741018561612,1.852,590.26,588.11,0.27295147]
[1741018561806,1.852,590.26,588.12,0.27295147]
[1741018562013,1.852,590.26,588.13,0.27295147]
[1741018562205,1.852,590.26,587.94,0.27295147]
[1741018562408,1.852,590.26,587.95,0.27295147]
[1741018562612,1.852,590.26,587.96,0.27281854]
[1741018562913,1.77153329,590.25,587.97,0.27281854]
[1741018563115,1.852,590.26,587.97,0.27281854]
[1741018563311,1.852,590.26,587.98,0.27281854]
[1741018563512,1.852,590.26,587.99,0.27281854]
[1741018563706,1.852,590.26,588.0,0.27281854]
[1741018563912,1.852,590.26,588.01,0.27281854]
[1741018564114,1.852,590.26,588.2,1.25722407]
[1741018564413,1.852,590.26,588.21,0.27269835]
[1741018564613,1.852,590.26,588.22,0.27270531]
[1741018564815,0.965,590.25,588.23,0.27270531]
[1741018565014,0.965,590.25,588.24,0.27270531]
[1741018565215,0.965,590.25,588.25,0.27270531]
[1741018565413,0.965,590.25,588.26,0.27270531]
[1741018565613,0.965,590.25,588.27,0.27270531]
[1741018565815,0.965,590.25,588.2,1.25722407]
[1741018565816,0.965,590.25,588.28,0.27270531]
[1741018566011,0.965,590.25,588.29,0.27270531]
[1741018566211,0.965,590.25,588.3,0.27270531]
[1741018566416,0.965,590.25,588.31,0.27270531]
[1741018566610,0.965,590.25,588.32,0.27270531]
[1741018566917,0.965,590.25,588.33,0.27270531]
[1741018567217,0.965,590.25,588.34,0.27270531]
[1741018567417,0.965,590.25,588.35,0.27270531]
[1741018567623,0.965,590.25,588.36,0.27270531]
[1741018567917,0.965,590.25,588.37,0.27270531]
[1741018568217,0.965,590.25,588.38,0.27270531]
[1741018568410,0.965,590.25,588.39,0.27270531]
[1741018568616,0.965,590.25,588.4,0.27270531]
[1741018568918,0.965,590.25,588.41,0.27270531]
[1741018569213,0.33884521,590.24,588.43,0.33988749]
[1741018569413,0.33884521,590.24,588.44,0.27270531]
[1741018569617,0.33884521,590.24,588.45,0.27270531]
[1741018569816,0.33884521,590.24,588.46,0.27270531]
[1741018570018,0.33884521,590.24,588.47,0.27270531]
[1741018570314,0.969,590.23,588.43,0.33988749]
[1741018570617,0.969,590.23,588.44,0.27268271]
[1741018571519,0.969,590.23,588.75,1.26512561]
[1741018571816,1.516,590.22,588.77,0.33969122]
[1741018572120,1.516,590.22,588.78,0.27268271]
[1741018573216,1.516,590.22,588.79,0.33967968]
[1741018573412,1.516,590.22,588.8,0.27268271]
[1741018573615,1.516,590.22,588.81,0.27276273]
[1741018573812,1.516,590.22,588.8,0.27276273]
[1741018574016,1.516,590.22,588.81,0.27276273]
[1741018574218,1.516,590.22,588.82,0.27276273]
[1741018574418,1.516,590.22,588.8,0.27276273]
[1741018574619,1.516,590.22,588.81,0.27276273]
[1741018574819,1.516,590.22,588.82,0.27276273]
[1741018575320,1.516,590.22,588.83,0.61241933]
[1741018575621,1.516,590.22,588.84,0.27276273]
[1741018575818,1.516,590.22,588.85,0.27276273]
[1741018576123,1.516,590.22,588.86,0.27276273]
[1741018576316,1.516,590.22,588.87,0.27276273]
[1741018576620,1.516,590.22,588.83,0.3396566]
[1741018576822,1.516,590.22,588.84,0.2727197]
[1741018579821,1.516,590.22,588.85,0.61236477]
[1741018580121,0.33886243,590.21,588.86,0.612359]
[1741018580326,0.33886243,590.21,588.87,0.61235323]
[1741018580526,0.33886243,590.21,588.88,0.2727197]
[1741018580825,0.33886243,590.21,588.89,0.6123417]
[1741018581024,0.33886243,590.21,588.9,0.2727197]
[1741018581222,0.33886243,590.21,588.91,0.2727197]
[1741018581420,0.33886243,590.21,588.71,1.25683385]
[1741018581421,0.33886243,590.21,588.92,0.61225684]
[1741018581624,0.33886243,590.21,588.93,0.27265214]
[1741018581824,0.33886243,590.21,588.94,0.27265214]
[1741018582023,0.33886243,590.21,588.95,0.27265214]
[1741018582219,0.33886243,590.21,588.96,0.27265214]
[1741018582423,0.33886243,590.21,588.97,0.27265214]
[1741018582626,0.33886243,590.21,588.98,0.27265214]
[1741018582925,0.33886243,590.21,588.99,0.27265214]
[1741018583127,0.33886243,590.21,589.0,0.27265214]
[1741018583425,0.33886243,590.21,589.01,0.27265214]
[1741018583726,0.33886243,590.21,589.02,0.27265214]
[1741018583929,0.33886243,590.21,589.18,1.26512561]
[1741018584225,0.33886243,590.21,589.19,0.27265214]
[1741018584621,0.33886243,590.21,589.2,0.27266371]
[1741018584823,0.33886243,590.21,589.21,0.27266371]
[1741018585126,0.33886243,590.21,589.22,0.27266371]
[1741018585326,0.33886243,590.21,589.23,0.27266371]
[1741018585526,0.33886243,590.21,589.19,0.27266371]
[1741018585721,0.33886243,590.21,589.2,0.27266371]
[1741018585921,0.33886243,590.21,589.18,1.26512561]
[1741018585922,0.33886243,590.21,589.21,0.27266371]
[1741018586126,0.33886243,590.21,589.19,0.27266371]
[1741018586321,0.33886243,590.21,589.2,0.27266371]
[1741018586527,0.33886243,590.21,589.21,0.27266371]
[1741018586828,0.33886243,590.21,589.22,0.27266371]
[1741018587024,0.33886243,590.21,589.06,0.27266371]
[1741018587230,0.33886243,590.21,589.07,0.27266371]
[1741018587422,0.33886243,590.21,589.08,0.27266371]
[1741018587626,0.33886243,590.21,589.09,0.33950669]
[1741018587824,0.33886243,590.21,589.1,0.27266371]
[1741018588027,0.33886243,590.21,589.11,0.33949517]
[1741018588229,0.33886243,590.21,589.12,0.27266371]
[1741018588822,0.33886243,590.21,589.13,0.33948364]
[1741018589030,0.33886243,590.21,589.14,0.27266371]
[1741018589329,0.33886243,590.21,589.15,0.33947212]
[1741018589830,0.33886243,590.21,589.16,0.2726936]
[1741018591031,1.171,590.2,589.16,0.2726936]
[1741018591428,2.455,590.2,589.16,0.2726936]
[1741018592426,2.455,590.2,589.15,0.33947212]
[1741018592636,2.455,590.2,589.16,0.27266148]
[1741018593028,2.455,590.2,589.17,0.33946059]
[1741018593331,2.455,590.2,589.18,0.27266148]
[1741018594031,2.455,590.2,589.19,0.27267342]
[1741018594233,2.455,590.2,589.18,0.27267342]
[1741018594429,2.455,590.2,589.19,0.27267342]
[1741018594627,2.455,590.2,589.2,0.27267342]
[1741018594931,2.455,590.2,589.21,0.27267342]
[1741018595233,2.455,590.2,589.22,0.27267342]
[1741018595532,2.455,590.2,589.17,0.33946059]
[1741018595833,2.455,590.2,589.18,0.27265739]
[1741018596331,3.357,590.2,589.18,0.27265739]
[1741018597230,4.196,590.2,589.18,0.27265739]
[1741018600130,4.196,590.2,589.17,0.33946059]
[1741018600330,4.196,590.2,589.18,0.27254017]
[1741018601632,4.196,590.2,589.17,0.33946059]
[1741018601833,4.196,590.2,589.19,0.27253282]
[1741018602132,4.196,590.2,589.2,0.27253282]
[1741018602335,4.196,590.2,589.21,0.27253282]
[1741018602533,4.196,590.2,589.22,0.27253282]
[1741018602733,4.196,590.2,589.23,0.27253282]
[1741018602934,4.196,590.2,589.24,0.27253282]
[1741018603231,4.196,590.2,589.46,1.26512561]
[1741018603435,4.196,590.2,589.47,0.27253282]
[1741018605136,4.196,590.2,589.55,1.26512561]
[1741018605332,4.196,590.2,589.56,0.27253282]
[1741018606635,4.196,590.2,589.57,0.27253282]
[1741018606934,4.196,590.2,589.58,0.27253282]
[1741018607134,4.196,590.2,589.59,0.27253282]
[1741018607334,4.196,590.2,589.6,0.27253282]
[1741018607530,4.196,590.2,589.61,0.27253282]
[1741018607835,4.196,590.2,589.62,0.27253282]
[1741018608030,4.196,590.2,589.55,1.26512561]
[1741018608235,4.196,590.2,589.7,1.26512561]
[1741018608537,4.196,590.2,589.71,0.27247351]
[1741018609637,4.196,590.2,589.72,0.27238731]
[1741018609837,4.196,590.2,589.71,0.27238731]
[1741018610137,4.196,590.2,589.7,1.26512561]
[1741018610138,4.196,590.2,589.72,0.27238731]
[1741018610435,4.196,590.2,589.73,0.27238731]
[1741018610636,4.196,590.2,589.74,0.27238731]
[1741018610830,4.196,590.2,589.75,0.27238731]
[1741018611033,4.196,590.2,589.7,1.26512561]
[1741018611034,4.196,590.2,589.71,0.27238731]
[1741018611230,4.196,590.2,589.72,0.61153131]
[1741018611435,4.196,590.2,589.73,0.61152555]
[1741018611636,4.196,590.2,589.74,0.27238731]
[1741018612137,4.196,590.2,589.73,0.33913824]
[1741018612437,4.196,590.2,589.74,0.27236106]
[1741018614537,4.196,590.2,589.75,0.33912674]
[1741018614734,4.196,590.2,589.76,0.27236106]
[1741018615739,4.196,590.2,589.77,0.33911524]
[1741018615935,4.196,590.2,589.78,0.27236106]
[1741018617342,4.196,590.2,589.77,0.33911524]
[1741018617539,4.196,590.2,589.78,0.2722898]